fUSD/lending_fUSD_20260626
["ID","MTS","AMOUNT","RATE_DAILY","PERIOD"]
[426492684,1782468647000,-6324.0,0.00028389,10]
[426492681,1782468647000,-688.94,0.0002803,2]
[426492683,1782468647000,-814.0,0.00028345,2]
[426492667,1782468647000,-907.80057191,0.00027669,2]
[426492677,1782468647000,-916.27509664,0.00027956,2]
[426492689,1782468647000,-500.0,0.00028442,2]
[426492685,1782468647000,-157.0,0.00028413,5]
[426492688,1782468647000,-500.0,0.00028442,2]
[426492686,1782468647000,-500.0,0.00028442,2]
[426492692,1782468647000,-219.71646898,0.00028442,2]
[426492691,1782468647000,-500.0,0.00028442,2]
[426492690,1782468647000,-500.0,0.00028442,2]
[426492695,1782468647000,-800.0,0.000285,2]
[426492693,1782468647000,-688.94,0.00028451,2]
[426492694,1782468647000,-151.56702897,0.0002848,24]
[426492697,1782468647000,-1300.1056,0.000285,2]
[426492699,1782468647000,-319.0,0.00028615,30]
[426492636,1782468647000,-151.56702919,0.00027397,10]
[426492696,1782468647000,-800.0,0.000285,2]
[426492668,1782468647000,-1020.26954352,0.00027669,2]
[426492687,1782468647000,-500.0,0.00028442,2]
[426492663,1782468647000,-434.0,0.000275,7]
[426492665,1782468647000,-688.94,0.00027608,2]
[426492637,1782468647000,-598.76,0.00027397,2]
[426492634,1782468647000,-150.0,0.00027397,2]
[426492639,1782468647000,-9129.48,0.00027397,10]
[426492640,1782468647000,-17409.31,0.00027397,10]
[426492641,1782468647000,-14507.76,0.00027397,10]
[426492644,1782468647000,-419.61809819,0.00027397,2]
[426492643,1782468647000,-209.8090491,0.00027397,2]
[426492652,1782468647000,-901.43,0.00027397,2]
[426492648,1782468647000,-355.4199043,0.00027397,2]
[426492658,1782468647000,-1642.58,0.000274,2]
[426492647,1782468647000,-733.02007731,0.00027397,2]
[426492649,1782468647000,-283.57768794,0.00027397,7]
[426492653,1782468647000,-1000.0,0.000274,2]
[426492642,1782468647000,-183.25501933,0.00027397,2]
[426492650,1782468647000,-240.76086284,0.00027397,7]
[426492664,1782468647000,-151.56702897,0.00027533,17]
[426492654,1782468647000,-1000.0,0.000274,2]
[426492671,1782468647000,-1082.39497292,0.00027669,2]
[426492661,1782468647000,-151.56702897,0.00027437,15]
[426492659,1782468647000,-216.48047229,0.000274,10]
[426492670,1782468647000,-941.4602511,0.00027669,2]
[426492669,1782468647000,-940.52390866,0.00027669,2]
[426492662,1782468647000,-500.0,0.000275,7]
[426492660,1782468647000,-151.56702897,0.00027402,12]
[426492655,1782468647000,-1000.0,0.000274,2]
[426492656,1782468647000,-1000.0,0.000274,2]
[426492657,1782468647000,-1000.0,0.000274,2]
[426492651,1782468647000,-165.92235352,0.00027397,7]
[426492723,1782468648000,-1098.37029295,0.00028925,2]
[426492722,1782468648000,-1097.27789344,0.00028925,2]
[426492725,1782468648000,-353.79,0.00029,7]
[426492719,1782468648000,-1160.19469288,0.00028925,2]
[426492724,1782468648000,-152.0,0.00028965,5]
[426492718,1782468648000,-688.94,0.00028872,2]
[426492728,1782468648000,-1400.0,0.00029,2]
[426492731,1782468648000,-923.76,0.00029,2]
[426492726,1782468648000,-542.59,0.00029,7]
[426492732,1782468648000,-825.0,0.00029,2]
[426492730,1782468648000,-800.0,0.00029,2]
[426492729,1782468648000,-800.0,0.00029,2]
[426492734,1782468648000,-688.94,0.00029083,2]
[426492717,1782468648000,-353.79,0.00028863,7]
[426492733,1782468648000,-216.48047229,0.00029,7]
[426492727,1782468648000,-8023.93,0.00029,2]
[426492715,1782468648000,-280.23,0.000288,30]
[426492709,1782468648000,-152.0,0.00028619,30]
[426492716,1782468648000,-260.0,0.00028814,2]
[426492736,1782468648000,-151.56702897,0.00029117,26]
[426492700,1782468648000,-201.0,0.00028616,30]
[426492701,1782468648000,-664.0,0.00028616,30]
[426492702,1782468648000,-166.0,0.00028616,30]
[426492707,1782468648000,-155.0,0.00028616,30]
[426492706,1782468648000,-154.0,0.00028616,30]
[426492705,1782468648000,-184.0,0.00028616,30]
[426492720,1782468648000,-1059.10066723,0.00028925,2]
[426492703,1782468648000,-186.0,0.00028616,30]
[426492704,1782468648000,-807.0,0.00028616,30]
[426492721,1782468648000,-1190.31446744,0.00028925,2]
[426492711,1782468648000,-793.0,0.00028619,30]
[426492710,1782468648000,-577.0,0.00028619,30]
[426492712,1782468648000,-688.94,0.00028662,2]
[426492714,1782468648000,-1099.53011597,0.00028794,2]
[426492713,1782468648000,-150.0,0.00028767,2]
[426492708,1782468648000,-157.0,0.00028619,30]
[426492735,1782468648000,-903.96,0.000291,7]
[426492756,1782468648000,-664.0,0.00029616,30]
[426492738,1782468648000,-152829.56420543,0.0002912,20]
[426492758,1782468648000,-186.0,0.00029616,30]
[426492762,1782468648000,-155.0,0.00029616,30]
[426492759,1782468648000,-807.0,0.00029616,30]
[426492760,1782468648000,-184.0,0.00029616,30]
[426492766,1782468648000,-793.0,0.00029619,30]
[426492737,1782468648000,-426.14391834,0.00029119,10]
[426492773,1782468648000,-434.0,0.000299,7]
[426492769,1782468648000,-197.0,0.00029716,10]
[426492765,1782468648000,-577.0,0.00029619,30]
[426492764,1782468648000,-152.0,0.00029619,30]
[426492767,1782468648000,-1018.0,0.00029645,2]
[426492771,1782468648000,-350.0,0.0002977,14]
[426492772,1782468648000,-11381.6806767,0.000298,2]
[426492770,1782468648000,-8433.0,0.00029754,10]
[426492774,1782468648000,-111528.75803858,0.000299,2]
[426492763,1782468648000,-157.0,0.00029619,30]
[426492757,1782468648000,-166.0,0.00029616,30]
[426492768,1782468648000,-688.94,0.00029715,2]
[426492755,1782468648000,-201.0,0.00029616,30]
[426492746,1782468648000,-1161.7412111,0.000292,2]
[426492745,1782468648000,-3649.0,0.00029162,2]
[426492744,1782468648000,-935.0,0.00029162,2]
[426492743,1782468648000,-331.38035487,0.00029128,2]
[426492739,1782468648000,-847.43621855,0.0002912,20]
[426492742,1782468648000,-391499.97427602,0.0002912,20]
[426492749,1782468648000,-800.0,0.000295,2]
[426492747,1782468648000,-688.94,0.00029294,2]
[426492748,1782468648000,-10705.0,0.00029463,7]
[426492750,1782468648000,-800.0,0.000295,2]
[426492752,1782468648000,-13109.541851,0.000296,7]
[426492753,1782468648000,-2334.0,0.00029605,3]
[426492754,1782468648000,-319.0,0.00029615,30]
[426492751,1782468648000,-688.94,0.00029505,2]
[426492741,1782468648000,-216.0,0.00017162,2]
[426492740,1782468648000,-2371.0253,0.0002912,20]
[426492761,1782468648000,-154.0,0.00029616,30]
[426492779,1782469078000,229.05684998,0.0003013,120]
[426492781,1782469117000,163.93403121,0.0001,10]
[426492797,1782469221000,-151.0,0.00014998,2]
[426492795,1782469221000,-153.0,0.00014998,2]
[426492793,1782469221000,-151.0,0.00014998,2]
[426492794,1782469221000,-151.0,0.00014998,2]
[426492792,1782469221000,-150.0,0.00014998,2]
[426492791,1782469221000,-151.0,0.00014998,2]
[426492790,1782469221000,-151.0,0.00014998,2]
[426492789,1782469221000,-151.0,0.00014998,2]
[426492787,1782469221000,-153.0,0.00014998,2]
[426492785,1782469221000,-153.0,0.00014998,2]
[426492786,1782469221000,-152.0,0.00014998,2]
[426492782,1782469221000,-196.13347547,0.00014998,2]
[426492784,1782469221000,-151.0,0.00014998,2]
[426492783,1782469221000,-151.0,0.00014998,2]
[426492788,1782469221000,-151.0,0.00014998,2]
[426492798,1782469221000,-151.0,0.00014998,2]
[426492796,1782469221000,-150.0,0.00014998,2]
[426492799,1782469221000,-151.0,0.00014998,2]
[426492815,1782469221000,-152.0,0.00014998,2]
[426492813,1782469221000,-152.0,0.00014998,2]
[426492811,1782469221000,-152.0,0.00014998,2]
[426492812,1782469221000,-152.0,0.00014998,2]
[426492810,1782469221000,-150.0,0.00014998,2]
[426492808,1782469221000,-151.0,0.00014998,2]
[426492809,1782469221000,-152.0,0.00014998,2]
[426492814,1782469221000,-151.0,0.00014998,2]
[426492806,1782469221000,-152.0,0.00014998,2]
[426492804,1782469221000,-153.0,0.00014998,2]
[426492805,1782469221000,-151.0,0.00014998,2]
[426492803,1782469221000,-151.0,0.00014998,2]
[426492801,1782469221000,-150.0,0.00014998,2]
[426492802,1782469221000,-152.0,0.00014998,2]
[426492800,1782469221000,-151.0,0.00014998,2]
[426492807,1782469221000,-150.0,0.00014998,2]
[426492817,1782469301000,152.74703671,0.00014998,7]
[426492818,1782469517000,166.66,0.00022001,30]
[426492820,1782469623000,1166.03,0.000372,120]
[426492821,1782469699000,308.144869,0.000372,120]
[426492849,1782469832000,-150.0,0.00015001,2]
[426492848,1782469832000,-92.139,0.00015001,2]
[426492850,1782469832000,-151.0,0.00015001,2]
[426492846,1782469832000,-152.0,0.00015001,2]
[426492843,1782469832000,-114.861,0.00015001,2]
[426492844,1782469832000,-36.139,0.00015001,2]
[426492842,1782469832000,-150.0,0.00015001,2]
[426492841,1782469832000,-151.0,0.00015001,2]
[426492840,1782469832000,-151.0,0.00015001,2]
[426492836,1782469832000,-11.32325885,0.00015001,2]
[426492829,1782469832000,-152.0,0.00015001,2]
[426492837,1782469832000,-151.0,0.00015001,2]
[426492835,1782469832000,-138.67674115,0.00015001,2]
[426492839,1782469832000,-152.0,0.00015001,2]
[426492832,1782469832000,-29.07921166,0.00015001,2]
[426492833,1782469832000,-151.0,0.00015001,2]
[426492834,1782469832000,-150.0,0.00015001,2]
[426492830,1782469832000,-151.0,0.00015001,2]
[426492831,1782469832000,-121.92078834,0.00015001,2]
[426492851,1782469832000,-153.0,0.00015001,2]
[426492838,1782469832000,-150.0,0.00015001,2]
[426492847,1782469832000,-58.861,0.00015001,2]
[426492845,1782469832000,-153.0,0.00015001,2]
[426492852,1782469832000,-67.861,0.00015001,2]
[426492877,1782469832000,-1417.46692378,0.000162,2]
[426492874,1782469832000,-152.74703671,0.00015748,7]
[426492870,1782469832000,-216.48047229,0.00015002,2]
[426492867,1782469832000,-152.0,0.00015001,2]
[426492865,1782469832000,-150.0,0.00015001,2]
[426492863,1782469832000,-151.0,0.00015001,2]
[426492864,1782469832000,-151.0,0.00015001,2]
[426492868,1782469832000,-151.0,0.00015001,2]
[426492869,1782469832000,-151.0,0.00015001,2]
[426492866,1782469832000,-151.0,0.00015001,2]
[426492875,1782469832000,-152.74703671,0.00016198,7]
[426492862,1782469832000,-152.0,0.00015001,2]
[426492860,1782469832000,-151.0,0.00015001,2]
[426492861,1782469832000,-150.0,0.00015001,2]
[426492857,1782469832000,-150.0,0.00015001,2]
[426492853,1782469832000,-82.139,0.00015001,2]
[426492859,1782469832000,-151.0,0.00015001,2]
[426492856,1782469832000,-151.0,0.00015001,2]
[426492858,1782469832000,-150.0,0.00015001,2]
[426492855,1782469832000,-150.0,0.00015001,2]
[426492854,1782469832000,-151.0,0.00015001,2]
[426492872,1782469832000,-152.74703671,0.00015298,7]
[426492918,1782469838000,-2276.31522651,0.000162,2]
[426492989,1782469840000,-3515.5987328,0.000162,2]
[426492988,1782469840000,-3826.13784971,0.000162,2]
[426492990,1782469840000,-5522.87292437,0.000162,2]
[426492992,1782469840000,-265.32913534,0.000163,2]
[426492991,1782469840000,-909.4552191,0.000163,2]
[426493016,1782469847000,-2500.0,0.00016501,2]
[426493015,1782469847000,-6439.35367836,0.000165,2]
[426493012,1782469847000,-1499.69968208,0.000165,2]
[426493011,1782469847000,-436.37886731,0.000165,2]
[426493010,1782469847000,-560.21411393,0.000165,2]
[426493007,1782469847000,-6744.28858966,0.000165,2]
[426493005,1782469847000,-9038.47165717,0.000163,2]
[426493008,1782469847000,-775.63141034,0.000165,2]
[426493006,1782469847000,-200.0,0.00016361,2]
[426493004,1782469847000,-6345.13564556,0.000163,2]
[426493003,1782469847000,-152.0,0.000162,2]
[426493018,1782469847000,-2500.0,0.00016501,2]
[426493009,1782469847000,-102.82531549,0.000165,2]
[426493019,1782469847000,-2500.0,0.00016501,2]
[426493033,1782469847000,-1836.03658727,0.00017,2]
[426493022,1782469847000,-2500.0,0.00016501,2]
[426493031,1782469847000,-371.60046003,0.000168,2]
[426493037,1782469847000,-607.95810375,0.00017,2]
[426493035,1782469847000,-354.70923108,0.00017,2]
[426493036,1782469847000,-1949.6,0.00017,2]
[426493032,1782469847000,-4833.80761614,0.000168,2]
[426493030,1782469847000,-3833.063581,0.000168,2]
[426493034,1782469847000,-812.00244435,0.00017,2]
[426493027,1782469847000,-4349.50762765,0.000168,2]
[426493026,1782469847000,-152.74703672,0.00016798,7]
[426493028,1782469847000,-1208.0,0.000168,2]
[426493024,1782469847000,-7519.92,0.000167,2]
[426493025,1782469847000,-9038.47165717,0.000167,2]
[426493029,1782469847000,-1962.41237235,0.000168,2]
[426493020,1782469847000,-2500.0,0.00016501,2]
[426493045,1782470146000,250.0,0.00014,2]
[426493046,1782470224000,1003.2,0.000372,120]
[426493047,1782470284000,223.5,0.000309,120]
[426493048,1782470391000,240.55001062,0.00037231,120]
[426493049,1782470402000,2000.0,0.00037231,120]
[426493078,1782470650000,151.0,0.0001462,2]
[426493079,1782470653000,151.0,0.0001462,2]
[426493080,1782470657000,151.0,0.0001462,2]
[426493081,1782470660000,151.0,0.0001462,2]
[426493082,1782470683000,223.59,0.0001462,2]
[426493083,1782470700000,297.95324702,0.00037231,120]
[426493131,1782471033000,-151.0,0.0001547,2]
[426493115,1782471033000,-151.0,0.00015455,2]
[426493119,1782471033000,-151.0,0.00015455,2]
[426493117,1782471033000,-151.0,0.00015455,2]
[426493116,1782471033000,-150.0,0.00015455,2]
[426493118,1782471033000,-150.0,0.00015455,2]
[426493120,1782471033000,-152.0,0.00015455,2]
[426493122,1782471033000,-151.0,0.00015455,2]
[426493121,1782471033000,-151.0,0.00015455,2]
[426493124,1782471033000,-268.04453031,0.00015455,2]
[426493123,1782471033000,-152.0,0.00015455,2]
[426493126,1782471033000,-151.0,0.0001547,2]
[426493127,1782471033000,-69.91625697,0.0001547,2]
[426493125,1782471033000,-152.0,0.00015455,2]
[426493128,1782471033000,-83.08374303,0.0001547,2]
[426493129,1782471033000,-151.0,0.0001547,2]
[426493130,1782471033000,-151.0,0.0001547,2]
[426493114,1782471033000,-150.0,0.00015455,2]
[426493113,1782471033000,-151.0,0.00015455,2]
[426493098,1782471033000,-152.0,0.00015455,2]
[426493112,1782471033000,-151.0,0.00015455,2]
[426493132,1782471033000,-151.0,0.0001547,2]
[426493094,1782471033000,-151.0,0.00015455,2]
[426493093,1782471033000,-774.03701262,0.00015435,2]
[426493095,1782471033000,-151.0,0.00015455,2]
[426493096,1782471033000,-150.0,0.00015455,2]
[426493097,1782471033000,-151.0,0.00015455,2]
[426493099,1782471033000,-151.0,0.00015455,2]
[426493101,1782471033000,-153.0,0.00015455,2]
[426493111,1782471033000,-150.0,0.00015455,2]
[426493102,1782471033000,-151.0,0.00015455,2]
[426493103,1782471033000,-150.0,0.00015455,2]
[426493104,1782471033000,-151.0,0.00015455,2]
[426493106,1782471033000,-151.0,0.00015455,2]
[426493105,1782471033000,-151.0,0.00015455,2]
[426493107,1782471033000,-153.0,0.00015455,2]
[426493108,1782471033000,-152.0,0.00015455,2]
[426493109,1782471033000,-151.0,0.00015455,2]
[426493110,1782471033000,-151.0,0.00015455,2]
[426493100,1782471033000,-151.0,0.00015455,2]
[426493134,1782471033000,-150.0,0.0001547,2]
[426493153,1782471033000,-682.33905071,0.000162,2]
[426493133,1782471033000,-150.0,0.0001547,2]
[426493156,1782471033000,-151.0,0.000162,2]
[426493158,1782471033000,-151.0,0.000162,2]
[426493160,1782471033000,-151.0,0.000162,2]
[426493163,1782471033000,-3203.92936335,0.000163,2]
[426493165,1782471033000,-7181.26254052,0.000163,2]
[426493168,1782471033000,-166.66,0.00016374,2]
[426493170,1782471033000,-200.0,0.00016425,2]
[426493172,1782471033000,-658.75233296,0.000165,2]
[426493174,1782471033000,-2545.17703039,0.000165,2]
[426493176,1782471033000,-3421.12296961,0.000165,2]
[426493179,1782471033000,-502.87462798,0.000165,2]
[426493183,1782471033000,-922.40805857,0.00016505,2]
[426493182,1782471033000,-3257.26494293,0.000165,2]
[426493188,1782471033000,-357.324,0.00016505,2]
[426493190,1782471033000,-500.91157275,0.00016505,2]
[426493192,1782471033000,-699.49483532,0.00016505,2]
[426493136,1782471033000,-152.0,0.0001547,2]
[426493159,1782471033000,-151.0,0.000162,2]
[426493161,1782471033000,-151.0,0.000162,2]
[426493162,1782471033000,-216.48047229,0.00016212,2]
[426493155,1782471033000,-151.0,0.000162,2]
[426493135,1782471033000,-151.0,0.0001547,2]
[426493139,1782471033000,-150.0,0.0001547,2]
[426493137,1782471033000,-150.0,0.0001547,2]
[426493138,1782471033000,-150.0,0.0001547,2]
[426493157,1782471033000,-151.0,0.000162,2]
[426493143,1782471033000,-150.0,0.0001547,2]
[426493142,1782471033000,-151.0,0.0001547,2]
[426493144,1782471033000,-150.0,0.0001547,2]
[426493145,1782471033000,-152.0,0.0001564,2]
[426493141,1782471033000,-151.0,0.0001547,2]
[426493147,1782471033000,-151.0,0.0001564,2]
[426493146,1782471033000,-151.0,0.0001564,2]
[426493149,1782471033000,-3203.92936335,0.000162,2]
[426493152,1782471033000,-605.97758395,0.000162,2]
[426493148,1782471033000,-166.66,0.00016037,2]
[426493151,1782471033000,-2828.41591248,0.000162,2]
[426493150,1782471033000,-151.0,0.000162,2]
[426493154,1782471033000,-3064.52999338,0.000162,2]
[426493140,1782471033000,-150.0,0.0001547,2]
[426493241,1782471037000,-7181.26254052,0.000168,2]
[426493238,1782471037000,-7181.26254052,0.000167,2]
[426493240,1782471037000,-3203.92936335,0.000168,2]
[426493236,1782471037000,-9880.2218029,0.00016505,2]
[426493231,1782471037000,-497.83192271,0.00016505,2]
[426493233,1782471037000,-4090.2603655,0.00016505,2]
[426493235,1782471037000,-156.6926069,0.00016505,2]
[426493234,1782471037000,-259.2195026,0.00016505,2]
[426493242,1782471037000,-583.18,0.00016881,2]
[426493237,1782471037000,-3203.92936335,0.000167,2]
[426493239,1782471037000,-166.66,0.00016712,2]
[426493232,1782471037000,-2343.73183355,0.00016505,2]
[426493244,1782471037000,-152.0,0.000169,2]
[426493248,1782471037000,-2500.0,0.00017,2]
[426493245,1782471037000,-2500.0,0.00017,2]
[426493249,1782471037000,-2500.0,0.00017,2]
[426493246,1782471037000,-2500.0,0.00017,2]
[426493247,1782471037000,-2500.0,0.00017,2]
[426493251,1782471037000,-3203.92936335,0.00017,2]
[426493250,1782471037000,-150.0,0.00017,2]
[426493252,1782471037000,-7181.26254052,0.00017,2]
[426493254,1782471037000,-973.8145565,0.00017074,2]
[426493243,1782471037000,-152.0,0.000169,2]
[426493253,1782471037000,-166.66,0.0001705,2]
[426493302,1782471038000,-500.0,0.00017174,2]
[426493300,1782471038000,-500.0,0.00017174,2]
[426493298,1782471038000,-500.0,0.00017174,2]
[426493299,1782471038000,-500.0,0.00017174,2]
[426493291,1782471038000,-500.0,0.00017174,2]
[426493294,1782471038000,-500.0,0.00017174,2]
[426493292,1782471038000,-500.0,0.00017174,2]
[426493293,1782471038000,-500.0,0.00017174,2]
[426493301,1782471038000,-500.0,0.00017174,2]
[426493289,1782471038000,-500.0,0.00017174,2]
[426493296,1782471038000,-500.0,0.00017174,2]
[426493307,1782471038000,-500.0,0.00017174,2]
[426493308,1782471038000,-500.0,0.00017174,2]
[426493304,1782471038000,-500.0,0.00017174,2]
[426493305,1782471038000,-500.0,0.00017174,2]
[426493306,1782471038000,-500.0,0.00017174,2]
[426493309,1782471038000,-500.0,0.00017174,2]
[426493288,1782471038000,-500.0,0.00017174,2]
[426493311,1782471038000,-500.0,0.00017174,2]
[426493312,1782471038000,-500.0,0.00017174,2]
[426493314,1782471038000,-500.0,0.00017174,2]
[426493313,1782471038000,-500.0,0.00017174,2]
[426493316,1782471038000,-500.0,0.00017174,2]
[426493317,1782471038000,-500.0,0.00017174,2]
[426493315,1782471038000,-500.0,0.00017174,2]
[426493318,1782471038000,-500.0,0.00017174,2]
[426493303,1782471038000,-500.0,0.00017174,2]
[426493284,1782471038000,-500.0,0.00017174,2]
[426493278,1782471038000,-500.0,0.00017174,2]
[426493280,1782471038000,-500.0,0.00017174,2]
[426493319,1782471038000,-500.0,0.00017174,2]
[426493255,1782471038000,-13620.09,0.00017164,2]
[426493258,1782471038000,-500.0,0.00017174,2]
[426493256,1782471038000,-179.17159817,0.00017174,2]
[426493257,1782471038000,-500.0,0.00017174,2]
[426493259,1782471038000,-500.0,0.00017174,2]
[426493260,1782471038000,-390.54758986,0.00017174,2]
[426493261,1782471038000,-500.0,0.00017174,2]
[426493263,1782471038000,-500.0,0.00017174,2]
[426493262,1782471038000,-500.0,0.00017174,2]
[426493264,1782471038000,-500.0,0.00017174,2]
[426493265,1782471038000,-500.0,0.00017174,2]
[426493269,1782471038000,-500.0,0.00017174,2]
[426493286,1782471038000,-500.0,0.00017174,2]
[426493268,1782471038000,-500.0,0.00017174,2]
[426493267,1782471038000,-500.0,0.00017174,2]
[426493272,1782471038000,-500.0,0.00017174,2]
[426493270,1782471038000,-500.0,0.00017174,2]
[426493271,1782471038000,-500.0,0.00017174,2]
[426493274,1782471038000,-500.0,0.00017174,2]
[426493273,1782471038000,-500.0,0.00017174,2]
[426493275,1782471038000,-500.0,0.00017174,2]
[426493277,1782471038000,-500.0,0.00017174,2]
[426493276,1782471038000,-500.0,0.00017174,2]
[426493279,1782471038000,-500.0,0.00017174,2]
[426493283,1782471038000,-500.0,0.00017174,2]
[426493282,1782471038000,-500.0,0.00017174,2]
[426493281,1782471038000,-500.0,0.00017174,2]
[426493266,1782471038000,-500.0,0.00017174,2]
[426493320,1782471038000,-500.0,0.00017174,2]
[426493310,1782471038000,-500.0,0.00017174,2]
[426493325,1782471038000,-500.0,0.00017174,2]
[426493356,1782471038000,-3389.32705675,0.00017174,2]
[426493354,1782471038000,-3389.32705675,0.00017174,2]
[426493357,1782471038000,-3389.32705675,0.00017174,2]
[426493359,1782471038000,-3389.32705675,0.00017174,2]
[426493361,1782471038000,-3389.32705675,0.00017174,2]
[426493360,1782471038000,-3389.32705675,0.00017174,2]
[426493362,1782471038000,-3389.32705675,0.00017174,2]
[426493363,1782471038000,-3389.32705675,0.00017174,2]
[426493364,1782471038000,-3389.32705675,0.00017174,2]
[426493365,1782471038000,-3389.32705675,0.00017174,2]
[426493367,1782471038000,-3389.32705675,0.00017174,2]
[426493370,1782471038000,-3389.32705675,0.00017174,2]
[426493369,1782471038000,-3389.32705675,0.00017174,2]
[426493371,1782471038000,-3292.48914084,0.00017174,2]
[426493366,1782471038000,-3389.32705675,0.00017174,2]
[426493368,1782471038000,-3389.32705675,0.00017174,2]
[426493373,1782471038000,-3292.48914084,0.00017174,2]
[426493372,1782471038000,-3292.48914084,0.00017174,2]
[426493374,1782471038000,-3292.48914084,0.00017174,2]
[426493378,1782471038000,-3292.48914084,0.00017174,2]
[426493375,1782471038000,-3292.48914084,0.00017174,2]
[426493377,1782471038000,-3292.48914084,0.00017174,2]
[426493376,1782471038000,-3292.48914084,0.00017174,2]
[426493380,1782471038000,-3292.48914084,0.00017174,2]
[426493379,1782471038000,-3292.48914084,0.00017174,2]
[426493381,1782471038000,-3292.48914084,0.00017174,2]
[426493382,1782471038000,-3292.48914084,0.00017174,2]
[426493355,1782471038000,-3389.32705675,0.00017174,2]
[426493351,1782471038000,-3389.32705675,0.00017174,2]
[426493358,1782471038000,-3389.32705675,0.00017174,2]
[426493350,1782471038000,-3389.32705675,0.00017174,2]
[426493322,1782471038000,-500.0,0.00017174,2]
[426493326,1782471038000,-500.0,0.00017174,2]
[426493323,1782471038000,-500.0,0.00017174,2]
[426493327,1782471038000,-500.0,0.00017174,2]
[426493324,1782471038000,-500.0,0.00017174,2]
[426493329,1782471038000,-500.0,0.00017174,2]
[426493328,1782471038000,-500.0,0.00017174,2]
[426493331,1782471038000,-3389.32705675,0.00017174,2]
[426493333,1782471038000,-3389.32705675,0.00017174,2]
[426493352,1782471038000,-3389.32705675,0.00017174,2]
[426493332,1782471038000,-500.0,0.00017174,2]
[426493330,1782471038000,-3389.32705675,0.00017174,2]
[426493336,1782471038000,-500.0,0.00017174,2]
[426493338,1782471038000,-3389.32705675,0.00017174,2]
[426493334,1782471038000,-500.0,0.00017174,2]
[426493337,1782471038000,-3389.32705675,0.00017174,2]
[426493353,1782471038000,-3389.32705675,0.00017174,2]
[426493335,1782471038000,-3389.32705675,0.00017174,2]
[426493348,1782471038000,-3389.32705675,0.00017174,2]
[426493347,1782471038000,-3389.32705675,0.00017174,2]
[426493345,1782471038000,-3389.32705675,0.00017174,2]
[426493344,1782471038000,-3389.32705675,0.00017174,2]
[426493349,1782471038000,-3389.32705675,0.00017174,2]
[426493341,1782471038000,-3389.32705675,0.00017174,2]
[426493346,1782471038000,-3389.32705675,0.00017174,2]
[426493339,1782471038000,-500.0,0.00017174,2]
[426493340,1782471038000,-3389.32705675,0.00017174,2]
[426493321,1782471038000,-500.0,0.00017174,2]
[426493343,1782471038000,-523.04211374,0.00017174,2]
[426493342,1782471038000,-3389.32705675,0.00017174,2]
[426493385,1782471039000,-5121.64977463,0.00017174,2]
[426493384,1782471039000,-3292.48914084,0.00017174,2]
[426493394,1782471039000,-1594.42265893,0.000173,2]
[426493389,1782471039000,-3203.92936335,0.000172,2]
[426493387,1782471039000,-324.09084588,0.00017196,5]
[426493386,1782471039000,-1060.42257548,0.00017195,5]
[426493388,1782471039000,-743.52443178,0.00017196,5]
[426493390,1782471039000,-4368.138713,0.000172,2]
[426493392,1782471039000,-2102.16833632,0.000172,2]
[426493391,1782471039000,-710.9554912,0.000172,2]
[426493383,1782471039000,-3292.48914084,0.00017174,2]